fUSD/lending_fUSD_20250103
["ID","MTS","AMOUNT","RATE_DAILY","PERIOD"]
[347531449,1735905047168,-500.0,8.987e-05,2]
[347531450,1735905047178,-500.0,8.987e-05,2]
[347531451,1735905047188,-724.26,8.987e-05,2]
[347531452,1735905047197,-500.0,8.987e-05,2]
[347531453,1735905047207,-612.23,8.987e-05,2]
[347531454,1735905047216,-963.12,8.987e-05,2]
[347531455,1735905047227,-500.0,8.987e-05,2]
[347531456,1735905047237,-500.0,8.987e-05,2]
[347531457,1735905047247,-638.29,8.987e-05,2]
[347531458,1735905047259,-500.0,8.987e-05,2]
[347531459,1735905047267,-500.0,8.987e-05,2]
[347531460,1735905047278,-3108.79,8.987e-05,2]
[347531461,1735905047288,-500.0,8.987e-05,2]
[347531462,1735905047297,-1457.26,8.987e-05,2]
[347531463,1735905047307,-500.0,8.987e-05,2]
[347531464,1735905047316,-500.0,8.987e-05,2]
[347531465,1735905047326,-500.0,8.987e-05,2]
[347531466,1735905047336,-500.0,8.987e-05,2]
[347531467,1735905047347,-2183.1,8.987e-05,2]
[347531468,1735905047357,-5100.27,8.987e-05,2]
[347531469,1735905047368,-500.0,8.987e-05,2]
[347531470,1735905047377,-2697.6,8.987e-05,2]
[347531471,1735905047388,-5087.72,8.987e-05,2]
[347531472,1735905047398,-2588.56,8.987e-05,2]
[347531473,1735905047408,-963.91,8.987e-05,2]
[347531474,1735905047418,-1466.89,8.987e-05,2]
[347531475,1735905047429,-2475.57,8.987e-05,2]
[347531476,1735905047438,-500.0,8.987e-05,2]
[347531477,1735905047449,-7308.25,8.987e-05,2]
[347531478,1735905047459,-5613.04,8.987e-05,2]
[347531479,1735905047469,-3686.11,8.987e-05,2]
[347531480,1735905047478,-900.0,9e-05,3]
[347531481,1735905047489,-200.0,9.041e-05,2]
[347531482,1735905047498,-150.0,9.049e-05,2]
[347531483,1735905047508,-150.0,9.049e-05,2]
[347531484,1735905047518,-150.0,9.049e-05,2]
[347531485,1735905047528,-150.0,9.049e-05,2]
[347531486,1735905047538,-150.0,9.049e-05,2]
[347531487,1735905047547,-150.0,9.133e-05,2]
[347531488,1735905047557,-150.0,9.217e-05,2]
[347531489,1735905047566,-1000.0,9.247e-05,2]
[347531490,1735905047575,-1572.18,9.258e-05,2]
[347531491,1735905047585,-1238.78,9.258e-05,2]
[347531492,1735905047595,-1045.22,9.258e-05,2]
[347531493,1735905047604,-2902.69,9.258e-05,2]
[347531494,1735905047613,-500.0,9.258e-05,2]
[347531495,1735905047623,-2241.16,9.258e-05,2]
[347531496,1735905047632,-1257.51,9.258e-05,2]
[347531497,1735905047642,-2799.09,9.258e-05,2]
[347531498,1735905047651,-5716.7,9.258e-05,2]
[347531499,1735905047661,-3371.76,9.258e-05,2]
[347531500,1735905047670,-2026.89,9.258e-05,2]
[347531501,1735905047680,-6886.97,9.258e-05,2]
[347531502,1735905047689,-2462.966259,9.258e-05,2]
[347531503,1735905047698,-155.490195,9.258e-05,2]
[347531504,1735905047707,-3347.82,9.258e-05,2]
[347531505,1735905047717,-2504.290482,9.258e-05,2]
[347531506,1735905047726,-1591.88,9.258e-05,2]
[347531507,1735905047736,-2556.56,9.258e-05,2]
[347531508,1735905047745,-152.131169,9.258e-05,2]
[347531509,1735905047754,-841.72,9.258e-05,2]
[347531510,1735905047763,-158.807715,9.258e-05,2]
[347531511,1735905047772,-6521.31,9.258e-05,2]
[347531512,1735905047782,-2473.72,9.258e-05,2]
[347531513,1735905047792,-3947.86,9.258e-05,2]
[347531514,1735905047801,-1141.7,9.258e-05,2]
[347531515,1735905047810,-500.0,9.258e-05,2]
[347531516,1735905047820,-500.0,9.258e-05,2]
[347531517,1735905047829,-2767.2,9.258e-05,2]
[347531518,1735905047839,-2921.51,9.258e-05,2]
[347531519,1735905047848,-4005.05,9.258e-05,2]
[347531520,1735905047858,-2328.37,9.258e-05,2]
[347531521,1735905047867,-5514.99,9.258e-05,2]
[347531522,1735905047878,-759.07,9.258e-05,2]
[347531523,1735905047888,-3732.91,9.258e-05,2]
[347531524,1735905047897,-3765.97,9.258e-05,2]
[347531525,1735905047906,-6072.5,9.258e-05,2]
[347531526,1735905047916,-10453.95,9.258e-05,2]
[347531527,1735905047927,-2970.38,9.258e-05,2]
[347531528,1735905047936,-886.53,9.258e-05,2]
[347531529,1735905047946,-8562.83,9.258e-05,2]
[347531530,1735905047955,-3453.22,9.258e-05,2]
[347531531,1735905047965,-523.93,9.258e-05,2]
[347531532,1735905047975,-1498.51,9.258e-05,2]
[347531533,1735905047984,-901.5,9.258e-05,2]
[347531534,1735905047995,-500.0,9.258e-05,2]
[347531535,1735905048005,-565.2,9.258e-05,2]
[347531536,1735905048016,-500.0,9.258e-05,2]
[347531537,1735905048025,-500.0,9.259e-05,2]
[347531538,1735905048034,-500.0,9.259e-05,2]
[347531539,1735905048044,-500.0,9.259e-05,2]
[347531540,1735905048055,-464.94216254,9.259e-05,2]
[347531541,1735905048064,-615.15,9.259e-05,2]
[347531542,1735905048073,-500.0,9.259e-05,2]
[347531543,1735905048082,-500.0,9.259e-05,2]
[347531544,1735905048092,-500.0,9.259e-05,2]
[347531545,1735905048101,-500.0,9.259e-05,2]
[347531546,1735905048110,-500.0,9.259e-05,2]
[347531547,1735905048120,-500.0,9.259e-05,2]
[347531548,1735905048129,-500.0,9.259e-05,2]
[347531549,1735905048138,-500.0,9.259e-05,2]
[347531550,1735905048147,-827.89,9.259e-05,2]
[347531551,1735905048157,-580.61,9.259e-05,2]
[347531552,1735905048166,-512.24,9.259e-05,2]
[347531553,1735905048175,-500.0,9.259e-05,2]
[347531554,1735905048185,-500.0,9.259e-05,2]
[347531555,1735905048195,-500.0,9.259e-05,2]
[347531556,1735905048204,-500.0,9.259e-05,2]
[347531557,1735905048213,-252.81405524,9.259e-05,2]
[347531558,1735905048223,-673.25,9.259e-05,2]
[347531559,1735905048233,-500.0,9.259e-05,2]
[347531560,1735905048242,-500.0,9.259e-05,2]
[347531561,1735905048252,-500.0,9.259e-05,2]
[347531562,1735905048265,-778.45,9.259e-05,2]
[347531563,1735905048275,-152.93,9.259e-05,2]
[347531564,1735905048284,-500.0,9.259e-05,2]
[347531565,1735905048293,-586.2,9.259e-05,2]
[347531566,1735905048303,-1181.02,9.259e-05,2]
[347531567,1735905048312,-500.0,9.259e-05,2]
[347531568,1735905048321,-500.0,9.259e-05,2]
[347531569,1735905048330,-1092.98,9.259e-05,2]
[347531570,1735905048340,-500.0,9.259e-05,2]
[347531571,1735905048350,-500.0,9.259e-05,2]
[347531572,1735905048359,-500.0,9.259e-05,2]
[347531573,1735905048369,-500.0,9.259e-05,2]
[347531574,1735905048378,-705.4,9.259e-05,2]
[347531575,1735905048387,-1451.9,9.259e-05,2]
[347531576,1735905048397,-1058.02,9.259e-05,2]
[347531577,1735905048407,-1119.68,9.259e-05,2]
[347531578,1735905048418,-500.0,9.259e-05,2]
[347531579,1735905048428,-1408.28,9.259e-05,2]
[347531580,1735905048438,-1153.1,9.259e-05,2]
[347531581,1735905048448,-941.5,9.259e-05,2]
[347531582,1735905048457,-500.0,9.259e-05,2]
[347531583,1735905048467,-889.02,9.259e-05,2]
[347531584,1735905048477,-500.0,9.259e-05,2]
[347531585,1735905048488,-1037.1,9.259e-05,2]
[347531586,1735905048498,-697.9,9.259e-05,2]
[347531587,1735905048508,-500.0,9.259e-05,2]
[347531588,1735905048518,-500.0,9.259e-05,2]
[347531589,1735905048527,-500.0,9.259e-05,2]
[347531590,1735905048537,-500.0,9.259e-05,2]
[347531591,1735905048546,-722.95,9.259e-05,2]
[347531592,1735905048555,-595.42,9.259e-05,2]
[347531593,1735905048565,-158.54490456,9.259e-05,2]
[347531594,1735905048575,-540.34,9.259e-05,2]
[347531595,1735905048584,-717.92,9.259e-05,2]
[347531596,1735905048594,-500.0,9.259e-05,2]
[347531597,1735905048603,-500.0,9.259e-05,2]
[347531598,1735905048614,-152.33202574,9.259e-05,2]
[347531599,1735905048623,-392.50141507,9.259e-05,2]
[347531600,1735905048633,-500.0,9.259e-05,2]
[347531601,1735905048643,-1228.8,9.259e-05,2]
[347531602,1735905048653,-500.0,9.259e-05,2]
[347531603,1735905048662,-500.0,9.259e-05,2]
[347531604,1735905048671,-500.0,9.259e-05,2]
[347531605,1735905048682,-1034.58,9.259e-05,2]
[347531606,1735905048691,-500.0,9.259e-05,2]
[347531607,1735905048701,-500.0,9.259e-05,2]
[347531608,1735905048710,-528.65,9.259e-05,2]
[347531609,1735905048720,-500.62,9.259e-05,2]
[347531610,1735905048729,-500.0,9.259e-05,2]
[347531611,1735905048740,-842.73,9.259e-05,2]
[347531612,1735905048750,-520.8,9.259e-05,2]
[347531613,1735905048759,-1367.71,9.259e-05,2]
[347531614,1735905048770,-1049.73,9.259e-05,2]
[347531615,1735905048779,-500.0,9.259e-05,2]
[347531616,1735905048789,-500.0,9.259e-05,2]
[347531617,1735905048799,-1255.86,9.259e-05,2]
[347531618,1735905048808,-500.0,9.259e-05,2]
[347531619,1735905048818,-500.0,9.259e-05,2]
[347531620,1735905048827,-500.0,9.259e-05,2]
[347531621,1735905048837,-500.0,9.259e-05,2]
[347531622,1735905048847,-500.0,9.259e-05,2]
[347531623,1735905048856,-500.0,9.259e-05,2]
[347531624,1735905048867,-500.0,9.259e-05,2]
[347531625,1735905048876,-500.0,9.259e-05,2]
[347531626,1735905048887,-500.0,9.259e-05,2]
[347531627,1735905048896,-509.92,9.259e-05,2]
[347531628,1735905048906,-500.0,9.259e-05,2]
[347531629,1735905048916,-628.7206766,9.259e-05,2]
[347531630,1735905048925,-558.07,9.259e-05,2]
[347531631,1735905048935,-500.0,9.259e-05,2]
[347531632,1735905048945,-500.0,9.259e-05,2]
[347531633,1735905048954,-500.0,9.259e-05,2]
[347531634,1735905048964,-500.0,9.259e-05,2]
[347531635,1735905048973,-500.0,9.259e-05,2]
[347531636,1735905048983,-500.0,9.259e-05,2]
[347531637,1735905048995,-500.0,9.259e-05,2]
[347531638,1735905049005,-524.13743519,9.259e-05,2]
[347531639,1735905049015,-500.0,9.259e-05,2]
[347531640,1735905049025,-500.0,9.259e-05,2]
[347531641,1735905049034,-533.13903372,9.259e-05,2]
[347531642,1735905049043,-500.0,9.259e-05,2]
[347531643,1735905049054,-500.0,9.259e-05,2]
[347531644,1735905049063,-500.0,9.259e-05,2]
[347531645,1735905049072,-1431.51,9.259e-05,2]
[347531646,1735905049083,-1133.96,9.259e-05,2]
[347531647,1735905049092,-785.88,9.259e-05,2]
[347531648,1735905049102,-504.9,9.259e-05,2]
[347531649,1735905049111,-500.0,9.259e-05,2]
[347531650,1735905049121,-500.0,9.259e-05,2]
[347531651,1735905049131,-500.0,9.259e-05,2]
[347531652,1735905049140,-737.37,9.259e-05,2]
[347531653,1735905049149,-1425.68,9.259e-05,2]
[347531654,1735905049159,-500.0,9.259e-05,2]
[347531655,1735905049169,-500.0,9.259e-05,2]
[347531656,1735905049179,-732.36,9.259e-05,2]
[347531657,1735905049188,-500.0,9.259e-05,2]
[347531658,1735905049198,-620.53,9.259e-05,2]
[347531659,1735905049207,-754.58,9.259e-05,2]
[347531660,1735905049217,-2999.23,9.259e-05,2]
[347531661,1735905049226,-1531.82,9.259e-05,2]
[347531662,1735905049235,-611.72,9.259e-05,2]
[347531663,1735905049245,-500.0,9.259e-05,2]
[347531664,1735905049256,-500.0,9.259e-05,2]
[347531665,1735905049267,-852.64,9.259e-05,2]
[347531666,1735905049277,-500.0,9.259e-05,2]
[347531667,1735905049287,-509.35715949,9.259e-05,2]
[347531668,1735905049297,-500.0,9.259e-05,2]
[347531669,1735905049307,-575.7,9.259e-05,2]
[347531670,1735905049317,-500.0,9.259e-05,2]
[347531671,1735905049327,-500.0,9.259e-05,2]
[347531672,1735905049337,-1088.05,9.259e-05,2]
[347531673,1735905049346,-500.0,9.259e-05,2]
[347531674,1735905049355,-500.0,9.259e-05,2]
[347531675,1735905049365,-685.93,9.259e-05,2]
[347531676,1735905049374,-500.0,9.259e-05,2]
[347531677,1735905049384,-500.0,9.259e-05,2]
[347531678,1735905049393,-500.0,9.259e-05,2]
[347531679,1735905049402,-500.0,9.259e-05,2]
[347531680,1735905049412,-500.0,9.259e-05,2]
[347531681,1735905049421,-505.48,9.259e-05,2]
[347531682,1735905049431,-500.0,9.259e-05,2]
[347531683,1735905049440,-500.0,9.259e-05,2]
[347531684,1735905049450,-669.94,9.259e-05,2]
[347531685,1735905049459,-500.0,9.259e-05,2]
[347531686,1735905049469,-500.0,9.259e-05,2]
[347531687,1735905049478,-500.0,9.259e-05,2]
[347531688,1735905049488,-500.0,9.259e-05,2]
[347531689,1735905049497,-500.0,9.259e-05,2]
[347531690,1735905049506,-500.0,9.259e-05,2]
[347531691,1735905049516,-500.0,9.259e-05,2]
[347531692,1735905049525,-568.23,9.259e-05,2]
[347531693,1735905049534,-500.0,9.259e-05,2]
[347531694,1735905049543,-1439.98,9.259e-05,2]
[347531695,1735905049553,-525.09,9.259e-05,2]
[347531696,1735905049562,-500.0,9.259e-05,2]
[347531697,1735905049571,-500.0,9.259e-05,2]
[347531698,1735905049581,-500.0,9.259e-05,2]
[347531699,1735905049590,-500.0,9.259e-05,2]
[347531700,1735905049599,-500.0,9.259e-05,2]
[347531701,1735905049609,-500.0,9.259e-05,2]
[347531702,1735905049619,-500.0,9.259e-05,2]
[347531703,1735905049628,-577.33,9.259e-05,2]
[347531704,1735905049637,-656.99,9.259e-05,2]
[347531705,1735905049646,-1430.89,9.259e-05,2]
[347531706,1735905049655,-1033.47,9.259e-05,2]
[347531707,1735905049664,-811.19,9.259e-05,2]
[347531708,1735905049674,-500.0,9.259e-05,2]
[347531709,1735905049683,-500.0,9.259e-05,2]
[347531710,1735905049692,-594.45,9.259e-05,2]
[347531711,1735905049701,-500.0,9.259e-05,2]
[347531712,1735905049710,-613.98,9.259e-05,2]
[347531713,1735905049719,-862.41,9.259e-05,2]
[347531714,1735905049728,-500.0,9.259e-05,2]
[347531715,1735905049738,-500.0,9.259e-05,2]
[347531716,1735905049747,-500.0,9.259e-05,2]
[347531717,1735905049757,-674.72,9.259e-05,2]
[347531718,1735905049766,-637.32,9.259e-05,2]
[347531719,1735905049775,-927.07,9.259e-05,2]
[347531720,1735905049785,-500.0,9.259e-05,2]
[347531721,1735905049794,-500.0,9.259e-05,2]
[347531722,1735905049803,-500.0,9.259e-05,2]
[347531723,1735905049812,-500.0,9.259e-05,2]
[347531724,1735905049822,-500.0,9.259e-05,2]
[347531725,1735905049831,-500.0,9.259e-05,2]
[347531726,1735905049840,-500.0,9.259e-05,2]
[347531727,1735905049849,-500.0,9.259e-05,2]
[347531728,1735905049859,-500.0,9.259e-05,2]
[347531729,1735905049868,-822.81,9.259e-05,2]
[347531730,1735905049877,-604.94,9.259e-05,2]
[347531731,1735905049887,-500.0,9.259e-05,2]
[347531732,1735905049896,-500.0,9.259e-05,2]
[347531733,1735905049904,-1035.84,9.259e-05,2]
[347531734,1735905049914,-500.0,9.259e-05,2]
[347531735,1735905049924,-500.0,9.259e-05,2]
[347531736,1735905049933,-500.0,9.259e-05,2]
[347531737,1735905049942,-500.0,9.259e-05,2]
[347531738,1735905049951,-3770.84,9.259e-05,2]
[347531739,1735905049959,-500.0,9.259e-05,2]
[347531740,1735905049968,-500.0,9.259e-05,2]
[347531741,1735905049977,-500.0,9.259e-05,2]
[347531742,1735905049986,-500.0,9.259e-05,2]
[347531743,1735905049995,-500.0,9.259e-05,2]
[347531744,1735905050004,-665.81,9.259e-05,2]
[347531745,1735905050013,-500.0,9.259e-05,2]
[347531746,1735905050022,-1299.36,9.259e-05,2]
[347531747,1735905050032,-500.0,9.259e-05,2]
[347531748,1735905050041,-500.0,9.259e-05,2]
[347531749,1735905050050,-825.65,9.259e-05,2]
[347531750,1735905050059,-872.68,9.259e-05,2]
[347531751,1735905050067,-500.0,9.259e-05,2]
[347531752,1735905050078,-500.0,9.259e-05,2]
[347531753,1735905050087,-500.0,9.259e-05,2]
[347531754,1735905050096,-321.04056295,9.259e-05,2]
[347531755,1735905050106,-500.0,9.259e-05,2]
[347531756,1735905050117,-814.58,9.259e-05,2]
[347531757,1735905050127,-500.0,9.259e-05,2]
[347531758,1735905050137,-3892.95,9.259e-05,2]
[347531759,1735905050147,-500.0,9.259e-05,2]
[347531760,1735905050157,-500.0,9.259e-05,2]
[347531761,1735905050166,-500.0,9.259e-05,2]
[347531762,1735905050175,-500.0,9.259e-05,2]
[347531763,1735905050185,-500.0,9.259e-05,2]
[347531764,1735905050194,-8705.47,9.259e-05,2]
[347531765,1735905050204,-755.9,9.259e-05,2]
[347531766,1735905050213,-500.0,9.259e-05,2]
[347531767,1735905050226,-500.0,9.259e-05,2]
[347531768,1735905050236,-849.32,9.259e-05,2]
[347531769,1735905050245,-500.0,9.259e-05,2]
[347531770,1735905050255,-1681.54,9.259e-05,2]
[347531771,1735905050265,-500.0,9.259e-05,2]
[347531772,1735905050275,-500.0,9.259e-05,2]
[347531773,1735905050285,-500.0,9.259e-05,2]
[347531774,1735905050295,-1722.88,9.259e-05,2]
[347531775,1735905050305,-500.0,9.259e-05,2]
[347531776,1735905050315,-212.71870027,9.259e-05,2]
[347531777,1735905050325,-500.0,9.259e-05,2]
[347531778,1735905050335,-500.0,9.259e-05,2]
[347531779,1735905050345,-500.0,9.259e-05,2]
[347531780,1735905050354,-500.0,9.259e-05,2]
[347531781,1735905050363,-500.0,9.259e-05,2]
[347531782,1735905050373,-542.77,9.259e-05,2]
[347531783,1735905050382,-500.0,9.259e-05,2]
[347531784,1735905050392,-1980.49,9.259e-05,2]
[347531785,1735905050401,-500.0,9.259e-05,2]
[347531786,1735905050411,-1498.56,9.259e-05,2]
[347531787,1735905050421,-500.0,9.259e-05,2]
[347531788,1735905050431,-1722.4,9.259e-05,2]
[347531789,1735905050441,-500.0,9.259e-05,2]
[347531790,1735905050451,-541.03,9.259e-05,2]
[347531791,1735905050460,-500.0,9.259e-05,2]
[347531792,1735905050470,-609.41,9.259e-05,2]
[347531793,1735905050479,-500.0,9.259e-05,2]
[347531794,1735905050489,-500.0,9.259e-05,2]
[347531795,1735905050499,-1160.85,9.259e-05,2]
[347531796,1735905050508,-500.0,9.259e-05,2]
[347531797,1735905050518,-3387.6,9.259e-05,2]
[347531798,1735905050528,-896.11,9.259e-05,2]
[347531799,1735905050538,-500.0,9.259e-05,2]
[347531800,1735905050547,-500.0,9.259e-05,2]
[347531801,1735905050556,-869.04,9.259e-05,2]
[347531802,1735905050566,-500.0,9.259e-05,2]
[347531803,1735905050575,-500.0,9.259e-05,2]
[347531804,1735905050585,-1251.63,9.259e-05,2]
[347531805,1735905050595,-764.46,9.259e-05,2]
[347531806,1735905050604,-500.0,9.259e-05,2]
[347531807,1735905050614,-500.0,9.259e-05,2]
[347531808,1735905050624,-923.83,9.259e-05,2]
[347531809,1735905050633,-500.0,9.259e-05,2]
[347531810,1735905050643,-3209.31,9.259e-05,2]
[347531811,1735905050653,-500.0,9.259e-05,2]
[347531812,1735905050662,-1744.31,9.259e-05,2]
[347531813,1735905050672,-500.0,9.259e-05,2]
[347531814,1735905050681,-500.0,9.259e-05,2]
[347531815,1735905050691,-500.0,9.259e-05,2]
[347531816,1735905050700,-249.037796,9.259e-05,2]
[347531817,1735905050710,-604.22,9.259e-05,2]
[347531818,1735905050720,-869.17,9.259e-05,2]
[347531819,1735905050729,-500.0,9.259e-05,2]
[347531820,1735905050739,-500.0,9.259e-05,2]
[347531821,1735905050750,-500.0,9.259e-05,2]
[347531822,1735905050759,-500.0,9.259e-05,2]
[347531823,1735905050769,-3954.77,9.259e-05,2]
[347531824,1735905050778,-1229.97,9.259e-05,2]
[347531825,1735905050788,-500.0,9.259e-05,2]
[347531826,1735905050799,-500.0,9.259e-05,2]
[347531827,1735905050809,-967.0,9.259e-05,2]
[347531828,1735905050818,-500.0,9.259e-05,2]
[347531829,1735905050828,-500.0,9.259e-05,2]
[347531830,1735905050838,-500.0,9.259e-05,2]
[347531831,1735905050848,-7839.58,9.259e-05,2]
[347531832,1735905050858,-539.43,9.259e-05,2]
[347531833,1735905050869,-266.45,9.259e-05,2]
[347531834,1735905050879,-1218.48,9.259e-05,2]
[347531835,1735905050889,-500.0,9.259e-05,2]
[347531836,1735905050899,-2501.7,9.259e-05,2]
[347531837,1735905050909,-500.0,9.259e-05,2]
[347531838,1735905050919,-500.0,9.259e-05,2]
[347531839,1735905050931,-500.0,9.259e-05,2]
[347531840,1735905050942,-5609.49,9.259e-05,2]
[347531841,1735905050952,-500.0,9.259e-05,2]
[347531842,1735905050961,-500.0,9.259e-05,2]
[347531843,1735905050972,-500.0,9.259e-05,2]
[347531844,1735905050982,-500.0,9.259e-05,2]
[347531845,1735905050993,-500.0,9.259e-05,2]
[347531846,1735905051002,-500.0,9.259e-05,2]
[347531847,1735905051012,-500.0,9.259e-05,2]
[347531848,1735905051022,-500.0,9.259e-05,2]
[347531849,1735905051032,-500.0,9.259e-05,2]
[347531850,1735905051041,-618.39,9.259e-05,2]
[347531851,1735905051051,-500.0,9.259e-05,2]
[347531852,1735905051061,-1344.92,9.259e-05,2]
[347531853,1735905051071,-592.31,9.259e-05,2]
[347531854,1735905051081,-1093.28,9.259e-05,2]
[347531855,1735905051091,-500.0,9.259e-05,2]
[347531856,1735905051100,-500.0,9.259e-05,2]
[347531857,1735905051110,-544.71,9.259e-05,2]
[347531858,1735905051120,-500.0,9.259e-05,2]
[347531859,1735905051130,-1196.01,9.259e-05,2]
[347531860,1735905051140,-500.0,9.259e-05,2]
[347531861,1735905051150,-500.0,9.259e-05,2]
[347531862,1735905051160,-1072.89,9.259e-05,2]
[347531863,1735905051170,-500.0,9.259e-05,2]
[347531864,1735905051179,-3920.37,9.259e-05,2]
[347531865,1735905051189,-2410.46,9.259e-05,2]
[347531866,1735905051199,-1151.84,9.259e-05,2]
[347531867,1735905051208,-500.0,9.259e-05,2]
[347531868,1735905051218,-11066.11,9.259e-05,2]
[347531869,1735905051228,-364.44866892,9.259e-05,2]
[347531870,1735905051237,-500.0,9.259e-05,2]
[347531871,1735905051247,-1217.73,9.259e-05,2]
[347531872,1735905051260,-500.0,9.259e-05,2]
[347531873,1735905051269,-1944.42,9.259e-05,2]
[347531874,1735905051279,-1797.6,9.259e-05,2]
[347531875,1735905051289,-500.0,9.259e-05,2]
[347531876,1735905051299,-500.0,9.259e-05,2]
[347531877,1735905051309,-500.0,9.259e-05,2]
[347531878,1735905051318,-500.0,9.259e-05,2]
[347531879,1735905051328,-500.0,9.259e-05,2]
[347531880,1735905051338,-500.0,9.259e-05,2]
[347531881,1735905051348,-500.0,9.26e-05,2]
[347531882,1735905051357,-500.0,9.26e-05,2]
[347531883,1735905051367,-500.0,9.26e-05,2]
[347531884,1735905051377,-500.0,9.26e-05,2]
[347531885,1735905051387,-500.0,9.26e-05,2]
[347531886,1735905051396,-500.0,9.26e-05,2]
[347531887,1735905051406,-1191.78,9.26e-05,2]
[347531888,1735905051416,-500.0,9.26e-05,2]
[347531889,1735905051426,-500.0,9.26e-05,2]
[347531890,1735905051435,-500.0,9.26e-05,2]
[347531891,1735905051445,-500.0,9.26e-05,2]
[347531892,1735905051455,-500.0,9.26e-05,2]
[347531893,1735905051465,-500.0,9.26e-05,2]
[347531894,1735905051474,-500.0,9.26e-05,2]
[347531895,1735905051484,-500.0,9.26e-05,2]
[347531896,1735905051495,-500.0,9.26e-05,2]
[347531897,1735905051505,-500.0,9.26e-05,2]
[347531898,1735905051514,-500.0,9.26e-05,2]
[347531899,1735905051524,-500.0,9.26e-05,2]
[347531900,1735905051534,-500.0,9.26e-05,2]
[347531901,1735905051543,-687.48,9.26e-05,2]
[347531902,1735905051553,-500.0,9.26e-05,2]
[347531903,1735905051563,-558.11,9.26e-05,2]
[347531904,1735905051572,-500.0,9.26e-05,2]
[347531905,1735905051582,-500.0,9.26e-05,2]
[347531906,1735905051592,-500.0,9.26e-05,2]
[347531907,1735905051601,-500.0,9.26e-05,2]
[347531908,1735905051611,-500.0,9.26e-05,2]
[347531909,1735905051620,-500.0,9.26e-05,2]
[347531910,1735905051630,-500.0,9.26e-05,2]
[347531911,1735905051640,-500.0,9.26e-05,2]
[347531912,1735905051650,-500.0,9.26e-05,2]
[347531913,1735905051659,-500.0,9.26e-05,2]
[347531914,1735905051669,-1230.45,9.26e-05,2]
[347531915,1735905051679,-500.0,9.26e-05,2]
[347531916,1735905051688,-500.0,9.26e-05,2]
[347531917,1735905051698,-526.18,9.26e-05,2]
[347531918,1735905051708,-500.0,9.26e-05,2]
[347531919,1735905051717,-500.0,9.26e-05,2]
[347531920,1735905051727,-500.0,9.26e-05,2]
[347531921,1735905051738,-500.0,9.26e-05,2]
[347531922,1735905051748,-500.0,9.26e-05,2]
[347531923,1735905051758,-1029.03,9.26e-05,2]
[347531924,1735905051768,-500.0,9.26e-05,2]
[347531925,1735905051777,-500.0,9.26e-05,2]
[347531926,1735905051787,-500.0,9.26e-05,2]
[347531927,1735905051797,-500.0,9.26e-05,2]
[347531928,1735905051807,-500.0,9.26e-05,2]
[347531929,1735905051817,-500.0,9.26e-05,2]
[347531930,1735905051826,-500.0,9.26e-05,2]
[347531931,1735905051836,-513.1,9.26e-05,2]
[347531932,1735905051846,-500.0,9.26e-05,2]
[347531933,1735905051856,-633.22,9.26e-05,2]
[347531934,1735905051866,-500.0,9.26e-05,2]
[347531935,1735905051876,-500.0,9.26e-05,2]
[347531936,1735905051886,-500.0,9.26e-05,2]
[347531937,1735905051896,-722.34,9.26e-05,2]
[347531938,1735905051906,-500.0,9.26e-05,2]
[347531939,1735905051916,-1101.9,9.26e-05,2]
[347531940,1735905051925,-500.0,9.26e-05,2]
[347531941,1735905051936,-587.25,9.26e-05,2]
[347531942,1735905051946,-1875.98,9.26e-05,2]
[347531943,1735905051956,-500.0,9.26e-05,2]
[347531944,1735905051966,-500.0,9.26e-05,2]
[347531945,1735905051976,-500.0,9.26e-05,2]
[347531946,1735905051987,-500.0,9.26e-05,2]
[347531947,1735905051998,-1339.24,9.26e-05,2]
[347531948,1735905052008,-500.0,9.26e-05,2]